Cogmind - Beta 10.2 @@@ ROGUE MODE // 2021.03.16 @ 00:04:37 Player: Robbedoes Result: Self-destructed Performance ------------- Evolutions (1) 500 Regions Visited (2) 400 Robots Destroyed (17) 85 Value Destroyed (451) 451 Prototype IDs (0) 0 Alien Tech Used (0) 0 Bonus (0) 0 TOTAL SCORE: 1436 Bonus ------- None Cogmind --------- Core Integrity 192/400 Matter 300/300 Energy 99/100 System Corruption 0% Temperature Cool (0) Movement Core (50) Location -9/Materials Parts ------- > --- POWER (2) -------- (None) > --- PROPULSION (3) --- (None) > --- UTILITY (2) ------ (None) > --- WEAPON (2) ------- Mining Claw > --- INVENTORY (4) ---- Ion Engine Light Treads Light Treads Grenade Launcher Peak State ------------ > --- POWER ------------ Ion Engine > --- PROPULSION ------- Aluminum Leg Aluminum Leg > --- UTILITY ---------- Small Storage Unit Terrain Scanner > --- WEAPON ----------- EM Pulse Gun EM Pulse Gun > --- INVENTORY -------- Light Ion Engine Light Treads Light Treads Compact Wheel Compact Wheel Small Laser [Rating: 7] Favorites ----------- Power Ion Engine Engine Ion Engine Propulsion Aluminum Leg Leg Aluminum Leg Flight Unit Flight Unit Utility Terrain Scanner Device Terrain Scanner Storage Small Storage Unit Weapon Mining Claw Energy Gun EM Pulse Gun Launcher Grenade Launcher Special Weapon Mining Laser Slashing Weapon Mining Claw Build | -11 -10 -9 ------- Run | Scr Mat Mat Slots Evolved 2 | . . 2 Power 1 | . . 1 Propulsion 1 | . . 1 Utility . | . . . Weapon . | . . . Parts Attached 13 | . 13 . Power 2 | . 2 . Engine 2 | . 2 . Core . | . . . Reactor . | . . . Propulsion 2 | . 2 . Treads . | . . . Leg . | . . . Wheel . | . . . Hover . | . . . Flight 2 | . 2 . Utility 1 | . 1 . Device 1 | . 1 . Storage . | . . . Processor . | . . . Hackware . | . . . Protection . | . . . Artifact . | . . . Weapon 8 | . 8 . Energy Gun 2 | . 2 . Energy Cannon . | . . . Ballistic Gun . | . . . Ballistic Cannon . | . . . Launcher 2 | . 2 . Special Weapon 1 | . 1 . Impact Weapon . | . . . Slashing Weapon 3 | . 3 . Piercing Weapon . | . . . Special Melee Weapon . | . . . Unidentified Prototypes . | . . . Parts Lost 8 | . 3 5 Power 2 | . 1 1 Propulsion 2 | . . 2 Utility 1 | . . 1 Weapon 3 | . 2 1 Highest Loss Streak 5 | . 2 5 Average Slot Usage (%) 86 | . 97 57 Engine 12 | . 13 10 Leg 20 | . 27 . Flight 5 | . . 20 Device 11 | . 13 7 Storage 10 | . 14 . Energy Gun 5 | . 7 . Launcher 2 | . 3 . Special Weapon 3 | . 5 . Slashing Weapon 12 | . 10 20 Naked Turns . | . . . Heaviest Build 15 | 12 15 8 Greatest Support 20 | 20 20 8 Greatest Overweight (x) 4 | . 4 . Average Overweight (x) . | . . . Largest Inventory Capacity 6 | 6 6 4 Average Capacity 5 | 6 5 4 Most Carried 6 | 6 6 4 Average Carried 5 | 6 5 4 Final Capacity 6 | 6 4 4 Final Carried 6 | 6 4 4 Class Distribution -------------------- 100% | Mutant Dominant Class ---------------- Mutant | -10/Materials Mutant | -9/Materials Resources | -11 -10 -9 ----------- Run | Scr Mat Mat Matter Collected 362 | 200 137 25 Remotely . | . . . Salvage Created 489 | . 365 124 Parts 30 | . 24 6 Haulers Intercepted . | . . . Recyclers Shooed 1 | . 1 . Parts Field Recycled . | . . . Retrieved Matter . | . . . Parts Self-Destructed . | . . . Prevented . | . . . Kills | -11 -10 -9 ------- Run | Scr Mat Mat Combat Hostiles Destroyed 12 | . 9 3 Melee 7 | . 4 3 Guns 1 | . 1 . AOE 4 | . 4 . Classes Destroyed 6 | . 5 1 Builder 1 | . 1 . Recycler 2 | . 2 . Watcher 2 | . 2 . Swarmer 3 | . 3 . Grunt 8 | . 6 2 Duelist 1 | . . 1 Best Kill Streak 6 | . 6 3 Combat Bots Only 4 | . 4 3 Max Kills in Single Turn 2 | . 2 1 Gunslinging . | . . . Exploded 2 | . 2 . Melee 1 | . 1 1 Uniques/NPCs Destroyed . | . . . Combat | -11 -10 -9 -------- Run | Scr Mat Mat Damage Taken 815 | . 412 403 Core 327 | . 119 208 Absorbed by Shields . | . . . Core Remaining (%) 76 | 100 52 . Volleys Fired 14 | . 14 . Largest 2 | . 2 . Hottest 100 | . 100 . Shots Fired 20 | . 20 . Gun 10 | . 10 . Cannon . | . . . Launcher 5 | . 5 . Special 5 | . 5 . Kinetic . | . . . Thermal 5 | . 5 . Explosive 5 | . 5 . Electromagnetic 10 | . 10 . Robot Hit Streak 6 | . 6 . Robot Miss Streak 2 | . 2 . Penetration Max . | . . . Secondary Targets . | . . . Shots Hit Robots 27 | . 14 13 Core Hits 25 | . 21 4 Critical Hits . | . . . Critical Kills . | . . . Critical Parts Destroyed . | . . . Melee Attacks 34 | . 14 20 Impact . | . . . Slashing 34 | . 14 20 Piercing . | . . . Sneak Attacks . | . . . Combat Hostiles . | . . . Follow-up Attacks 3 | . . 3 Damage Inflicted 1219 | . 952 267 Guns 53 | . 53 . Cannons . | . . . Explosions 729 | . 729 . Melee 413 | . 146 267 Ramming . | . . . Kinetic . | . . . Thermal 24 | . 24 . Explosive 729 | . 729 . Electromagnetic 53 | . 53 . Impact . | . . . Slashing 413 | . 146 267 Piercing . | . . . Highest Corruption . | . . . Average Corruption . | . . . Corruption Purged . | . . . Overload Shots . | . . . Overflow Damage 26 | . 26 . Projectiles . | . . . Explosions 26 | . 26 . Melee . | . . . Knockbacks . | . . . Impact . | . . . Kinetic . | . . . Secondary . | . . . Self-Inflicted Damage 35 | . 35 . Shots 3 | . 3 . Rammed . | . . . Targets Rammed . | . . . Kicked . | . . . Crushed . | . . . Highest Temperature 60 | . 60 . Average Temperature 27 | . 27 . Received Heat Transfer 255 | . 105 150 Siege Activations . | . . . Robots Corrupted . | . . . Combat Hostiles . | . . . Parts Fried . | . . . Impact Corruptions . | . . . Robots Melted . | . . . Combat Hostiles . | . . . Parts Melted . | . . . Heat Transferred 50 | . 50 . Parts Sabotaged . | . . . Parts Stolen . | . . . Parts Stripped . | . . . Power Chain Reactions . | . . . Missiles Intercepted . | . . . Alert | -11 -10 -9 ------- Run | Scr Mat Mat Peak Influence 289 | . 289 186 Initial 121 | . . 121 Average 155 | . 158 150 Maximum Alert Level 1 | . 1 . Low Security (%) 61 | 100 47 100 Level 1 38 | . 52 . Level 2 . | . . . Level 3 . | . . . Level 4 . | . . . Level 5 . | . . . High Security . | . . . Max Security . | . . . Squads Dispatched 1 | . . 1 Investigation . | . . . Extermination . | . . . Reinforcement 1 | . . 1 Assault . | . . . Garrison . | . . . Intercept . | . . . Construction Impeded . | . . . Haulers Reinforced . | . . . Stealth | -11 -10 -9 --------- Run | Scr Mat Mat Distress Signals 2 | . 1 1 Communications Jammed . | . . . Distress Signals . | . . . Times Spotted 19 | . 11 8 Peak Tracking Total 6 | . 5 6 Tactical Retreats 1 | . . 1 Traps | -11 -10 -9 ------- Run | Scr Mat Mat Traps Triggered . | . . . Indirectly . | . . . Trap Hack Attempts . | . . . Triggered . | . . . Disarmed . | . . . Reprogrammed . | . . . Reused . | . . . Traps Extracted . | . . . Installed . | . . . Triggered . | . . . Machines | -11 -10 -9 ---------- Run | Scr Mat Mat Machines Disabled 4 | . 4 . Max in Single Turn 1 | . 1 . Machines Sabotaged . | . . . Garrisons Compromised . | . . . Overloaded Fab Kills . | . . . Fab Network Shutdowns . | . . . Hacking | -11 -10 -9 --------- Run | Scr Mat Mat Machines Accessed 2 | . 2 . Terminals 2 | . 2 . Fabricators . | . . . Repair Stations . | . . . Recycling Units . | . . . Scanalyzers . | . . . Garrison Access . | . . . Total Hacks 2 | . 2 . Successful 1 | . 1 . Failed 1 | . 1 . Catastrophic 1 | . 1 . Database Lockouts . | . . . Manual . | . . . Terminals 2 | . 2 . Fabricators . | . . . Repair Stations . | . . . Recycling Units . | . . . Scanalyzers . | . . . Garrison Access . | . . . Terminal Hacks 1 | . 1 . Maintenance Status 1 | . 1 . Fabricator Hacks . | . . . Repair Station Hacks . | . . . Recycling Unit Hacks . | . . . Scanalyzer . | . . . Garrison Access Hacks . | . . . Unauthorized Hacks . | . . . Terminals . | . . . Fabricators . | . . . Repair Stations . | . . . Recycling Units . | . . . Scanalyzers . | . . . Garrison Access . | . . . Data Cores Recovered . | . . . Used . | . . . Hacking Detections 1 | . 1 . Full Trace Events . | . . . Feedback Events . | . . . Feedback Blocked . | . . . Robot Schematics Acquired . | . . . Robots Built . | . . . Matter . | . . . Time . | . . . Total Robot Build Rating . | . . . Part Schematics Acquired . | . . . Parts Built . | . . . Matter . | . . . Time . | . . . Total Part Build Rating . | . . . Parts Repaired . | . . . Time . | . . . Parts Recycled . | . . . Recycled Matter . | . . . Retrieved Matter . | . . . Retrieved Components . | . . . Parts Scanalyzed . | . . . Part Schematics Acquired . | . . . Parts Damaged . | . . . Bothacking | -11 -10 -9 ------------ Run | Scr Mat Mat Used RIF Installer . | . . . Robots Hacked . | . . . Non-combat . | . . . Combat . | . . . Robot Hacks Applied . | . . . Relay Couplers Released . | . . . Robots Rewired . | . . . Allies Hacked . | . . . Hacks Repelled . | . . . Allies | -11 -10 -9 -------- Run | Scr Mat Mat Total Allies . | . . . Largest Group . | . . . Highest-Rated Group . | . . . Highest-Rated Ally . | . . . Total Orders . | . . . Ally Attacks . | . . . Total Damage . | . . . Kills . | . . . Allies Corrupted . | . . . Allies Melted . | . . . Intel | -11 -10 -9 ------- Run | Scr Mat Mat Robot Analysis Total . | . . . Derelict Logs Recovered . | . . . Drone Launches . | . . . Drone Recoveries . | . . . Exploration | -11 -10 -9 ------------- Run | Scr Mat Mat Turns Passed 436 | 2 323 111 Spaces Moved 318 | 2 171 145 Core 6 | . 2 4 Treads . | . . . Legs 161 | 2 159 . Wheels . | . . . Hover . | . . . Flight 151 | . 10 141 Fastest Speed 37 | 120 37 37 Average Speed 80 | 120 116 37 Slowest Speed 250 | 120 250 50 Overloaded Moves . | . . . Propulsion Burnouts . | . . . Robots Hopped . | . . . Cave-ins Triggered . | . . . Exploration Rate (%) 21 | 2 39 24 Regions Visited 2 Branch Regions . Pre-discovered Areas . | . . . Known Exits Taken . | . . . Unknown Exits Taken 2 | 1 1 . Scrap Searched . | . . . Spaces Dug 6 | . 6 . Terrain Destroyed 17 | . 17 . Melee 4 | . 4 . Projectile 3 | . 3 . AOE 10 | . 10 . Terrain Rammed . | . . . Walls Destroyed . | . . . Machines Disabled . | . . . Actions | -11 -10 -9 --------- Run | Scr Mat Mat Total 404 | 1 237 166 Wait 12 | . 8 4 Move 316 | 1 170 145 Hop . | . . . Pick Up 8 | . 8 . Fast Attach 2 | . 2 . Attach 7 | . 7 . Detach 1 | . 1 . Swap 4 | . 4 . Drop 9 | . 9 . Fire 14 | . 14 . Melee 31 | . 14 17 Ram . | . . . Kick . | . . . Crush . | . . . Escape Stasis . | . . . Rewire . | . . . Trap . | . . . Miscellaneous . | . . . Route ------- -11/Scrapyard -10/Materials -9/Materials History --------- Turn | Location | Event 1 | -11/Scrapyard | Discovered new exit (range 1) 3 | -11/Scrapyard | Entered Materials 177 | -10/Materials | Discovered new exit (range 15) 326 | -10/Materials | Entered another Materials area 326 | -9/Materials | Evolved 2 slots: Power x1, Propulsion x1 342 | -9/Materials | Build established: Mutant 434 | -9/Materials | Core integrity fell below 50% 437 | -9/Materials | Self-destructed Last Messages --------------- 00400_ Acquired 25 matter. 00400_ G-34 Mercenary Ion Engine ripped off. 00402_ R-06 Scavenger collects Transport Network Coupler. 00403_ G-34 Mercenary destroyed. 00404_ R-06 Scavenger collects Aluminum Leg. 00410_ Mining Claw follow-up attack on G-34 Mercenary. 00410_ R-06 Scavenger collects Lgt. Treads. 00411_ Mining Claw destroyed. 00412_ R-06 Scavenger collects Ion Engine. 00413_ R-06 Scavenger collects Lgt. Treads. 00414_ G-34 Mercenary destroyed. 00417_ R-06 Scavenger collects Prototype Energy Cannon. 00420_ Critical hit. 00420_ Lgt. Ion Engine destroyed. 00420_ R-06 Scavenger collects Prototype Engine. 00422_ Flight Unit destroyed. 00423_ R-06 Scavenger collects Prototype Energy Cannon. 00429_ L-31 Rogue destroyed. 00433_ R-06 Scavenger collects Imp. Aluminum Leg. 00436_ R-06 Scavenger collects Katana. Map ----- +----------------------------------------------------+ | ?????????????????????????????????????????????????? | | ?????????????????????????????????????????????????? | | ?????????????????????????????????????????????????? | | ?????????????????????????????????????????????????? | | ?????????????????????????????????????????????????? | | ?????????????????????????????????????????????????? | | ?????????????????????????????????????????????????? | | ?????????????????????????????????????????????????? | | ?????????????????????????????????????????????????? | | ?????????????????????????????????#???????????????? | | ???????????????????????????????? #???????????????? | | ???????????????????????????????? ##??????????????? | | ???????????????????????????????? ??????????????? | | ???????????????????????? ??????? ???????????????? | | ??????????????????????????????? ???????????????? | | ??????????????????????????????? #???????????????? | | ?????????????????????????????#? #???????????????? | | ??????????????????????????????? #???????????????? | | ?????????????????????#+??????? #???????????????? | | ?????????????????????# ??????? u#???????????????? | | ?????????????????????# ??????? #???????????????? | | ?????????????????????# ?????## ##??????????????? | | ?????????????????????# ###### #??????????????? | | ?????????????????????#[* %%*% #??????????????? | | ?????????????????????+ % [ #??????????????? | | ?????????????????????# @g r #??????????????? | | ?????????????????????# g#### #??????????????? | | ????? ?????????"?????# #??# #####??????????????? | | ????? ???????????????# #??# #??????????????????? | | ????? ???????????????# #??# #??????????????????? | | ????? ???????????#???# ##?# #??????????????????? | | ????# ???????????????# #??# #??????????????????? | | ????# #?????????????## ##?? #??????????????????? | | ????# #?????????????# #?? #??????????????????? | | ????# #?????????????# #?? #??????????????????? | | ????# #???????????#?# #?? #??????????????????? | | ????# #?????????????# #?? #??????????????????? | | ????# #####?????????# #?# #??????????????????? | | ##### #??????######/###?# #??????????????????? | | #??????# #### #????????????? ???? | | #??????# ## ############## ??? | | #??????# ## ???? | | ##### #??????# ## ?? ? | | ###### ##?"????# ## ? | | # #???????# ## "T" ? | | ! # #???????# ## #? | | + ###+########+##### ####### #? | | [[ # # #? #? | | [! # + #? !![ #? | | [ # # " # ![[ #? | +----------------------------------------------------+ Best States ------------- Heat Dissipation 28 Energy Generation 10 Energy Capacity 250 Matter Stores 300 Matter Capacity 300 Sight Range 16 Terrain Scan Range 14 Terrain Scan Density 10 Evasion (%) 62 Item Schematics ----------------- None Robot Schematics ------------------ None Fabricated ------------ Nothing Alien Tech Used ----------------- None Achievements -------------- None Challenges ------------ None Game ------ Seed FlightDefenseTendrils Manual? 0 Play Time 00:12:53 Cumulative 11.7 hours Start 2021.03.15 @ 23:54:34 End 2021.03.16 @ 00:04:37 Sessions 1 Manual Loads 0 Difficulty Rogue Special Mode None Game No. 27 Rogue 27 Adventurer 0 Explorer 0 Win Type - Total 0 Types 0/0/0/0/0/0/0/0/0 Lore% 19 Gallery% 17 Achievement% 17 Wizard Run 0 Options --------- ASCII 0 Keyboard 0 Movement Mouse Keybinds 0 Fullscreen 2 Font 24/Terminus Map View 76x50 Tactical HUD 1 Map Filters NONE Filters NONE Steam 1 RUN: 9a7c8986-df1e-419d-b258-f2e97938c4ce